bitfinex-derivatives/quotes_SOLF0:USTF0_20250901
["timestamp","ask_amount","ask_price","bid_price","bid_amount"]
[1756703964280,71.0767,196.96,196.9,1.7865582]
[1756703964479,4.5698,196.93,196.9,1.7865582]
[1756703965987,4.5702,196.91,196.9,1.7865582]
[1756703966988,4.5698,196.93,196.9,1.7865582]
[1756703967190,71.0752,196.97,196.92,1.7865582]
[1756703967494,4.5697,196.94,196.92,1.7865582]
[1756703967887,71.0775,196.96,196.83,8.81683187]
[1756703968091,71.0775,196.96,196.83,67.65683187]
[1756703968293,71.0775,196.96,196.9,1.7865582]
[1756703968595,71.0752,196.97,196.9,1.7865582]
[1756703968596,4.5702,196.92,196.9,1.7865582]
[1756703971287,4.5702,196.92,196.84,4.5717]
[1756703971493,4.5702,196.92,196.9,1.7865582]
[1756703971696,4.5696,196.94,196.9,1.7865582]
[1756703971891,4.5696,196.94,196.92,1.7865582]
[1756703972294,4.569,196.97,196.92,1.7865582]
[1756703972587,142.0832,197.06,196.95,1.7865582]
[1756703972791,142.0832,197.06,196.89,120.80443187]
[1756703972792,4.568,197.01,196.99,1.7865582]
[1756703973691,4.5674,197.03,196.99,1.7865582]
[1756703973889,4.5674,197.03,197.01,1.7865582]
[1756703975194,4.5681,197.0,196.99,1.7865582]
[1756703975697,4.5686,196.99,196.97,1.7865582]
[1756703976889,4.569,196.97,196.95,1.7865582]
[1756703977195,71.0637,196.99,196.93,1.7865582]
[1756703977389,71.0637,196.99,196.92,1.7865582]
[1756703977693,71.0565,197.01,196.92,1.7865582]
[1756703977899,71.0565,197.01,196.94,1.7865582]
[1756703978085,71.0507,197.03,196.94,1.7865582]
[1756703978288,4.5687,196.98,196.94,1.7865582]
[1756703978590,71.0507,197.03,196.96,1.7865582]
[1756703978787,127.36,197.05,197.0,1.7865582]
[1756703979094,127.36,197.05,196.98,1.7865582]
[1756703979290,4.5682,197.0,196.98,1.7865582]
[1756703980394,4.5676,197.02,196.98,1.7865582]
[1756703980795,4.5676,197.02,197.0,1.7865582]
[1756703981594,127.3,197.05,196.94,4.5693]
[1756703981595,4.568,197.01,196.94,4.5693]
[1756703981786,4.568,197.01,196.99,1.7865582]
[1756703982291,71.046,197.04,196.97,1.7865582]
[1756703983696,72.8325582,197.04,196.95,1.7865582]
[1756703984197,71.0532,197.02,196.95,1.7865582]
[1756703984792,71.046,197.04,196.97,1.7865582]
[1756703984997,127.58,197.03,196.97,1.7865582]
[1756703985402,4.5685,196.99,196.97,1.7865582]
[1756703985996,4.569,196.97,196.95,1.7865582]
[1756703986599,4.5693,196.95,196.93,1.7865582]
[1756703987008,4.5696,196.94,196.88,16.31948138]
[1756703987193,4.5696,196.94,196.92,1.7865582]
[1756703988398,4.5691,196.96,196.92,1.7865582]
[1756703988605,4.5691,196.96,196.94,1.7865582]
[1756703990213,4.5687,196.98,196.94,1.7865582]
[1756703990908,4.5687,196.98,196.95,1.7865582]
[1756703991413,4.5682,197.0,196.97,1.7865582]
[1756703991707,71.0352,197.07,196.99,1.7865582]
[1756703991915,127.96,197.06,196.99,1.7865582]
[1756703992209,71.0433,197.05,196.99,1.7865582]
[1756703992410,71.0462,197.04,196.99,1.7865582]
[1756703992601,71.0462,197.04,196.97,1.7865582]
[1756703993002,4.5683,197.0,196.97,1.7865582]
[1756703993402,4.5683,197.0,196.99,1.7865582]
[1756703993606,71.0319,197.08,196.96,1.7865582]
[1756703993807,71.0367,197.07,197.01,1.7865582]
[1756703994811,71.0367,197.07,196.99,1.7865582]
[1756703996809,4.5676,197.03,196.99,1.7865582]
[1756703997019,237.55098579,197.09,197.01,1.7865582]
[1756703997215,237.55098579,197.09,197.03,1.7865582]
[1756703997416,4.567,197.05,197.03,1.7865582]
[1756703997817,71.0211,197.11,197.03,1.7865582]
[1756703998015,127.78,197.1,197.03,1.7865582]
[1756703998921,127.78,197.1,197.05,1.7865582]
[1756703999616,4.5666,197.07,197.05,1.7865582]
[1756703999808,127.78,197.1,197.05,1.7865582]
[1756704000012,4.5666,197.07,197.05,1.7865582]
[1756704000915,71.006,197.16,197.04,4.5671]
[1756704001113,127.66,197.15,197.09,1.7865582]
[1756704001516,4.5652,197.13,197.09,1.7865582]
[1756704002121,127.66,197.15,197.11,1.7865582]
[1756704002312,132.2249,197.15,197.11,1.7865582]
[1756704002520,132.2249,197.15,197.05,4.5668]
[1756704002719,132.2249,197.15,197.1,1.7865582]
[1756704002720,127.66,197.15,197.1,1.7865582]
[1756704003116,4.5645,197.16,197.12,1.7865582]
[1756704003320,4.5645,197.16,197.14,1.7865582]
[1756704003523,127.62,197.19,197.14,1.7865582]
[1756704003925,4.5641,197.18,197.14,1.7865582]
[1756704004331,127.62,197.19,197.14,1.7865582]
[1756704005319,341.12,197.25,197.18,1.7865582]
[1756704005520,127.54,197.24,197.18,1.7865582]
[1756704005729,127.54,197.24,197.16,1.7865582]
[1756704005932,127.54,197.24,197.06,8.52]
[1756704006126,127.54,197.24,197.15,1.7865582]
[1756704006429,127.54,197.24,197.17,1.7865582]
[1756704007423,127.54,197.24,197.16,1.7865582]
[1756704008226,127.54,197.24,197.07,4.5665]
[1756704008424,127.54,197.24,197.15,1.7865582]
[1756704009831,129.3265582,197.24,197.15,1.7865582]
[1756704010831,129.3265582,197.24,197.14,1.7865582]
[1756704011530,139.3265582,197.24,197.09,4.5659]
[1756704011732,139.3265582,197.24,197.15,1.7865582]
[1756704012727,10.0,197.32,197.19,1.7865582]
[1756704012929,1.7865582,197.3,197.21,1.7865582]
[1756704013127,137.42,197.29,197.21,1.7865582]
[1756704013530,137.42,197.29,197.12,1.7865582]
[1756704013730,137.42,197.29,197.2,1.7865582]
[1756704015626,137.42,197.29,197.22,1.7865582]
[1756704016831,10.0,197.29,197.24,1.7865582]
[1756704017031,127.6,197.3,197.24,1.7865582]
[1756704017828,127.6,197.3,197.26,1.7865582]
[1756704018233,1.7865582,197.35,197.26,1.7865582]
[1756704018434,127.64,197.35,197.28,1.7865582]
[1756704020636,342.7465582,197.37,197.28,1.7865582]
[1756704020836,127.6,197.36,197.28,1.7865582]
[1756704021431,127.6,197.36,197.22,4.563]
[1756704021637,127.6,197.36,197.28,1.7865582]
[1756704022736,127.6,197.36,197.2,6.3500582]
[1756704022939,129.3865582,197.36,197.27,1.7865582]
[1756704023538,127.6,197.36,197.27,1.7865582]
[1756704025131,127.6,197.36,197.29,1.7865582]
[1756704026137,340.96,197.37,197.29,1.7865582]
[1756704026340,127.34,197.36,197.29,1.7865582]
[1756704027642,127.34,197.36,197.31,1.7865582]
[1756704029138,462.46910981,197.49,197.28,1.7865582]
[1756704029337,1.7865582,197.46,197.35,1.7865582]
[1756704030038,129.3065582,197.48,197.37,1.7865582]
[1756704030234,1.7865582,197.48,197.37,1.7865582]
[1756704030439,127.5,197.47,197.37,1.7865582]
[1756704030839,1.7865582,197.46,197.3,4.5612]
[1756704031040,1.7865582,197.46,197.35,1.7865582]
[1756704031243,127.5,197.47,197.37,1.7865582]
[1756704031442,129.2865582,197.47,197.37,1.7865582]
[1756704031738,1.7865582,197.45,197.35,1.7865582]
[1756704032139,127.5,197.47,197.35,1.7865582]
[1756704032444,1.7865582,197.45,197.35,1.7865582]
[1756704033946,127.5,197.47,197.35,1.7865582]
[1756704034145,1.7865582,197.45,197.35,1.7865582]
[1756704034544,127.5,197.47,197.35,1.7865582]
[1756704034747,1.7865582,197.45,197.35,1.7865582]
[1756704035052,1.7865582,197.45,197.29,4.5613]
[1756704035240,453.35094849,197.49,197.39,1.7865582]
[1756704035442,455.13750669,197.49,197.39,1.7865582]
[1756704035643,127.34,197.48,197.28,1.7865582]
[1756704035844,127.34,197.48,197.39,1.7865582]
[1756704037845,127.34,197.48,197.25,3.02]
[1756704037846,452.46910981,197.49,197.41,1.7865582]
[1756704038049,127.24,197.48,197.41,1.7865582]
[1756704040847,127.1,197.47,197.43,1.7865582]
[1756704041448,452.46910981,197.49,197.45,1.7865582]
[1756704041648,579.56910981,197.49,197.44,1.7865582]
[1756704042350,579.56910981,197.49,197.41,1.7865582]
[1756704043047,1.7865582,197.48,197.39,1.7865582]
[1756704046655,127.02,197.47,197.41,1.7865582]
[1756704048145,127.02,197.47,197.31,2.0]
[1756704048344,127.02,197.47,197.41,1.7865582]
[1756704051461,452.46910981,197.49,197.41,1.7865582]
[1756704051765,126.96,197.47,197.36,6.3463582]
[1756704051954,126.96,197.47,197.42,1.7865582]
[1756704052154,452.46910981,197.49,197.36,1.7865582]
[1756704052356,579.30910981,197.49,197.44,1.7865582]
[1756704053651,579.30910981,197.49,197.43,1.7865582]
[1756704054055,579.30910981,197.49,197.29,4.20227369]
[1756704054256,579.30910981,197.49,197.43,1.7865582]
[1756704054653,127.02,197.48,197.43,1.7865582]
[1756704057061,126.88,197.48,197.43,1.7865582]
[1756704057462,126.88,197.48,197.45,1.7865582]
[1756704060270,340.44,197.61,197.47,1.7865582]
[1756704060470,340.44,197.61,197.44,1.7865582]
[1756704060471,1.7865582,197.59,197.49,1.7865582]
[1756704060671,1.7865582,197.59,197.44,1.7865582]
[1756704061071,1.7865582,197.59,197.49,1.7865582]
[1756704062572,126.78,197.6,197.48,1.7865582]
[1756704062768,1.7865582,197.59,197.48,1.7865582]
[1756704065174,11.7865582,197.59,197.48,1.7865582]
[1756704065576,11.7865582,197.59,197.5,1.7865582]
[1756704065874,10.0,197.59,197.5,1.7865582]
[1756704066074,126.6,197.58,197.5,1.7865582]
[1756704068371,340.44,197.61,197.44,1.7865582]
[1756704068576,126.52,197.6,197.44,8.0865582]
[1756704068771,126.52,197.6,197.51,1.7865582]
[1756704070578,128.3065582,197.6,197.5,1.7865582]
[1756704073072,128.3065582,197.6,197.47,1.7865582]
[1756704073073,1.7865582,197.58,197.47,1.7865582]
[1756704073281,10.0,197.57,197.47,1.7865582]
[1756704073477,136.3,197.56,197.47,1.7865582]
[1756704073979,136.3,197.56,197.39,8.76137369]
[1756704074182,1.7865582,197.54,197.37,4.20227369]
[1756704074478,1.7865582,197.54,197.43,1.7865582]
[1756704075979,1.7865582,197.52,197.41,1.7865582]
[1756704076274,1.7865582,197.5,197.35,4.20227369]
[1756704076481,1.7865582,197.5,197.39,1.7865582]
[1756704077178,15.66497807,197.58,197.34,344.62227369]
[1756704077179,15.66497807,197.58,197.43,1.7865582]
[1756704077384,1.7865582,197.54,197.43,1.7865582]
[1756704077983,1.7865582,197.54,197.37,4.20227369]
[1756704078176,1.7865582,197.52,197.42,1.7865582]
[1756704078380,39.16,197.51,197.42,1.7865582]
[1756704078787,1.7865582,197.5,197.4,1.7865582]
[1756704079683,39.16,197.51,197.42,1.7865582]
[1756704079881,78.46,197.5,197.44,1.7865582]
[1756704080387,10.0,197.53,197.44,1.7865582]
[1756704080693,47.5,197.58,197.51,1.7865582]
[1756704084995,340.44,197.61,197.51,1.7865582]
[1756704085185,466.76,197.61,197.53,1.7865582]
[1756704085789,126.32,197.6,197.53,1.7865582]
[1756704085992,126.32,197.6,197.55,1.7865582]
[1756704086689,340.44,197.61,197.55,1.7865582]
[1756704086889,340.44,197.61,197.57,1.7865582]
[1756704087090,238.57044237,197.62,197.47,4.20227369]
[1756704087289,238.57044237,197.62,197.53,1.7865582]
[1756704088091,238.57044237,197.62,197.46,4.5575]
[1756704088291,238.57044237,197.62,197.53,1.7865582]
[1756704089189,112.29044237,197.62,197.53,1.7865582]
[1756704089386,5.66497807,197.69,197.52,1.7865582]
[1756704089588,36.32,197.68,197.59,1.7865582]
[1756704090290,1.7865582,197.7,197.52,1.7865582]
[1756704090491,127.58,197.69,197.61,1.7865582]
[1756704090888,127.58,197.69,197.53,4.5559]
[1756704091090,127.58,197.69,197.6,1.7865582]
[1756704093497,129.3665582,197.69,197.52,6.3425582]
[1756704093698,129.3665582,197.69,197.59,1.7865582]
[1756704094702,127.58,197.69,197.59,1.7865582]
[1756704094899,129.3665582,197.69,197.59,1.7865582]
[1756704096501,1.7865582,197.67,197.56,1.7865582]
[1756704096699,1.7865582,197.65,197.56,1.7865582]
[1756704096899,127.38,197.64,197.56,1.7865582]
[1756704097401,1.7865582,197.66,197.56,1.7865582]
[1756704097703,34.14,197.65,197.56,1.7865582]
[1756704099703,66.68,197.64,197.58,1.7865582]
[1756704100296,66.68,197.64,197.6,1.7865582]
[1756704103402,66.68,197.64,197.61,1.7865582]
[1756704104207,66.68,197.64,197.59,1.7865582]
[1756704105498,66.68,197.64,197.52,1.7865582]
[1756704105805,66.68,197.64,197.56,1.7865582]
[1756704107201,341.20083426,197.72,197.58,1.7865582]
[1756704107410,1.7865582,197.69,197.58,1.7865582]
[1756704109007,1.7865582,197.69,197.6,1.7865582]
[1756704109211,1.7865582,197.69,197.52,1.7865582]
[1756704109212,341.20083426,197.72,197.62,1.7865582]
[1756704109610,341.20083426,197.72,197.52,1.7865582]
[1756704109611,126.94,197.71,197.6,1.7865582]
[1756704109806,126.94,197.71,197.64,1.7865582]
[1756704111310,340.32,197.72,197.64,1.7865582]
[1756704111507,340.32,197.72,197.66,1.7865582]
[1756704113009,340.32,197.72,197.64,1.7865582]
[1756704113205,340.32,197.72,197.66,1.7865582]
[1756704113811,126.86,197.73,197.68,1.7865582]
[1756704114606,1.7865582,197.78,197.68,1.7865582]
[1756704114810,126.84,197.77,197.7,1.7865582]
[1756704115008,0.88033291,197.82,197.72,1.7865582]
[1756704115202,126.86,197.81,197.72,1.7865582]
[1756704117615,126.86,197.81,197.74,1.7865582]
[1756704117806,126.86,197.81,197.68,6.3388582]
[1756704117807,126.86,197.81,197.76,1.7865582]
[1756704118319,340.12,197.84,197.74,1.7865582]
[1756704118515,126.82,197.83,197.68,1.7865582]
[1756704118716,126.82,197.83,197.76,1.7865582]
[1756704119611,126.82,197.83,197.78,1.7865582]
[1756704119816,1.7865582,197.9,197.8,1.7865582]
[1756704120013,43.58,197.89,197.8,1.7865582]
[1756704120908,1.7865582,197.91,197.82,1.7865582]
[1756704121108,88.78,197.9,197.82,1.7865582]
[1756704122216,340.02,197.96,197.76,1.7865582]
[1756704122217,1.7865582,197.94,197.84,1.7865582]
[1756704122409,126.8,197.93,197.76,1.7865582]
[1756704122613,90.28,197.92,197.86,1.7865582]
[1756704123015,90.28,197.92,197.76,1.7865582]
[1756704123216,90.28,197.92,197.79,4.5497]
[1756704123515,90.28,197.92,197.86,1.7865582]
[1756704124014,90.28,197.92,197.76,4.5504]
[1756704124220,90.28,197.92,197.84,1.7865582]
[1756704125011,90.28,197.92,197.76,1.7865582]
[1756704125215,90.28,197.92,197.84,1.7865582]
[1756704126318,90.28,197.92,197.86,1.7865582]
[1756704127019,126.62,197.93,197.86,1.7865582]
[1756704127221,340.02,197.96,197.86,1.7865582]
[1756704127416,126.7,197.95,197.88,1.7865582]
[1756704129720,340.02,197.96,197.9,1.7865582]
[1756704130024,340.02,197.96,197.92,1.7865582]
[1756704130519,175.53881681,198.01,197.94,1.7865582]
[1756704130817,126.66,197.98,197.94,1.7865582]
[1756704131517,126.66,197.98,197.96,1.7865582]
[1756704132618,126.56,198.02,197.96,1.7865582]
[1756704132819,126.62,198.02,197.99,1.7865582]
[1756704133419,126.62,198.02,197.84,1.7865582]
[1756704133625,126.62,198.02,197.95,1.7865582]
[1756704133824,126.62,198.02,197.92,1.7865582]
[1756704134019,126.62,198.02,197.97,1.7865582]
[1756704134427,126.62,198.02,197.84,1.7865582]
[1756704134621,126.62,198.02,197.93,1.7865582]
[1756704135920,126.62,198.02,197.91,2.94805896]
[1756704136222,339.8,198.08,197.91,2.94805896]
[1756704136426,126.68,198.07,197.94,2.94805896]
[1756704136628,126.68,198.06,197.97,2.94805896]
[1756704137523,126.68,198.06,197.9,7.49545896]
[1756704137524,126.68,198.06,197.95,2.94805896]
[1756704138618,339.8,198.08,197.95,2.94805896]
[1756704138826,126.68,198.07,197.98,2.94805896]
[1756704139625,339.8,198.08,197.98,2.94805896]
[1756704139825,126.66,198.07,197.98,2.94805896]
[1756704140227,339.8,198.08,197.98,2.94805896]
[1756704140425,126.64,198.07,197.98,2.94805896]
[1756704140825,339.8,198.08,198.01,2.94805896]
[1756704141131,466.4,198.08,198.01,2.94805896]
[1756704141631,466.4,198.08,197.93,7.6]
[1756704141827,466.4,198.08,197.94,4.5463]
[1756704142029,466.4,198.08,197.98,2.94805896]
[1756704142622,339.8,198.08,197.98,2.94805896]
[1756704142828,126.68,198.07,197.98,2.94805896]
[1756704144326,339.8,198.08,197.98,2.94805896]
[1756704144532,126.68,198.07,197.98,2.94805896]
[1756704146727,339.8,198.08,197.98,2.94805896]
[1756704147038,126.5,198.07,198.01,2.94805896]
[1756704147331,126.5,198.07,197.85,75.62910959]
[1756704147535,126.5,198.07,197.98,2.94805896]
[1756704148037,126.5,198.07,198.01,2.94805896]
[1756704149031,339.8,198.08,198.01,2.94805896]
[1756704149237,126.44,198.09,198.02,2.94805896]
[1756704151334,126.44,198.09,198.01,2.94805896]
[1756704152637,126.34,198.09,198.01,2.94805896]
[1756704153430,2.94805896,198.15,198.01,2.94805896]
[1756704153636,110.30237627,198.17,198.04,2.94805896]
[1756704153836,41.68,198.16,198.04,2.94805896]
[1756704154635,110.30237627,198.17,198.04,2.94805896]
[1756704154836,126.3,198.16,198.07,2.94805896]
[1756704155936,236.62237627,198.17,198.07,2.94805896]
[1756704156131,236.62237627,198.17,198.02,3.04]
[1756704156336,236.62237627,198.17,198.09,2.94805896]
[1756704156537,236.62237627,198.17,198.07,2.94805896]
[1756704157539,126.32,198.17,198.07,2.94805896]
[1756704157940,126.32,198.17,198.09,1.76584303]
[1756704160038,126.32,198.17,198.11,1.76584303]
[1756704161043,126.54,198.16,198.11,1.76584303]
[1756704161340,126.52,198.18,198.13,1.76584303]
[1756704162445,339.48,198.2,198.13,1.76584303]
[1756704162646,126.56,198.19,198.13,1.76584303]
[1756704162841,339.48,198.2,198.15,1.76584303]
[1756704163041,466.02,198.2,198.15,1.76584303]
[1756704163246,126.5,198.21,198.15,1.76584303]
[1756704163748,112.98659267,198.3,198.19,1.76584303]
[1756704163947,128.26584303,198.29,198.19,1.76584303]
[1756704164348,128.26584303,198.29,198.18,1.76584303]
[1756704164945,126.5,198.28,198.18,1.76584303]
[1756704165247,1.76584303,198.27,198.1,2.04]
[1756704165442,1.76584303,198.25,198.14,1.76584303]
[1756704165642,92.66,198.24,198.14,1.76584303]
[1756704166740,1.76584303,198.23,198.14,1.76584303]
[1756704166943,1.76584303,198.21,198.05,31.68]
[1756704167141,1.76584303,198.21,198.11,1.76584303]
[1756704167551,1.76584303,198.21,198.04,339.32]
[1756704167743,1.76584303,198.21,198.11,1.76584303]
[1756704168350,121.7,198.2,198.11,1.76584303]
[1756704168547,121.7,198.19,198.04,343.864]
[1756704168851,126.7,198.2,198.08,1.76584303]
[1756704169147,113.8647153,198.3,198.16,1.76584303]
[1756704169358,113.8647153,198.3,198.08,1.76584303]
[1756704169359,128.70584303,198.29,198.18,1.76584303]
[1756704169550,128.70584303,198.29,198.2,1.76584303]
[1756704170856,126.94,198.29,198.2,1.76584303]
[1756704172358,126.96,198.28,198.22,1.76584303]
[1756704173254,126.9,198.29,198.21,1.76584303]
[1756704173952,126.9,198.29,198.16,1.76584303]
[1756704174155,126.9,198.29,198.22,1.76584303]
[1756704174350,126.84,198.29,198.22,1.76584303]
[1756704174752,339.32,198.32,198.24,1.76584303]
[1756704174945,126.82,198.31,198.24,1.76584303]
[1756704175656,126.82,198.31,198.18,4.5408]
[1756704175851,126.82,198.31,198.24,1.76584303]
[1756704176054,126.82,198.31,198.22,1.76584303]
[1756704176952,126.82,198.31,198.16,4.34584303]
[1756704177152,126.82,198.31,198.22,1.76584303]
[1756704178356,126.82,198.31,198.2,1.76584303]
[1756704178558,1.76584303,198.3,198.2,1.76584303]
[1756704179155,1.76584303,198.3,198.12,4.5422]
[1756704179357,1.76584303,198.28,198.19,1.76584303]
[1756704179557,126.7,198.27,198.19,1.76584303]
[1756704179754,1.76584303,198.26,198.08,1.76584303]
[1756704179961,1.76584303,198.26,198.15,1.76584303]
[1756704180152,1.76584303,198.26,198.08,128.46584303]
[1756704180153,0.87812263,198.31,198.19,1.76584303]
[1756704180354,1.76584303,198.29,198.19,1.76584303]
[1756704180563,1.76584303,198.27,198.08,1.76584303]
[1756704180762,1.76584303,198.25,198.14,1.76584303]
[1756704181160,1.76584303,198.23,198.08,1.76584303]
[1756704181369,26.12812263,198.31,198.12,1.76584303]
[1756704181567,10.87812263,198.31,198.18,1.76584303]
[1756704181870,1.76584303,198.26,198.08,1.76584303]
[1756704182065,126.92,198.25,198.16,1.76584303]
[1756704182768,1.76584303,198.24,198.14,1.76584303]
[1756704183467,1.76584303,198.22,198.12,1.76584303]
[1756704183771,1.76584303,198.26,198.16,1.76584303]
[1756704183973,126.92,198.25,198.16,1.76584303]
[1756704184174,1.76584303,198.22,198.12,1.76584303]
[1756704184378,1.76584303,198.18,198.04,353.22]
[1756704184675,127.04,198.17,198.08,1.76584303]
[1756704185071,127.04,198.17,198.04,339.32]
[1756704185276,127.04,198.17,198.07,1.76584303]
[1756704185473,10.0,198.24,198.0,1.76584303]
[1756704185678,1.76584303,198.21,198.11,1.76584303]
[1756704185871,5.26,198.23,198.11,1.76584303]
[1756704186172,1.76584303,198.23,198.13,1.76584303]
[1756704186373,47.78,198.23,198.14,1.76584303]
[1756704186577,10.0,198.3,198.17,1.76584303]
[1756704186872,0.87812263,198.31,198.16,1.76584303]
[1756704187073,127.78,198.3,198.21,1.76584303]
[1756704187670,127.78,198.3,198.2,1.76584303]
[1756704188378,1.76584303,198.29,198.17,1.76584303]
[1756704188675,1.76584303,198.26,198.17,1.76584303]
[1756704189677,1.76584303,198.26,198.14,1.76584303]
[1756704190078,2.94136347,198.27,198.13,2.94136347]
[1756704190676,0.87812263,198.31,198.16,2.94136347]
[1756704190882,128.63812263,198.31,198.19,2.94136347]
[1756704192674,2.94136347,198.28,198.13,2.94136347]
[1756704193078,2.94136347,198.25,198.04,4.20227369]
[1756704193378,55.76,198.24,198.1,2.94136347]
[1756704194175,55.76,198.24,198.03,4.20227369]
[1756704194371,2.94136347,198.19,198.04,2.94136347]
[1756704194572,32.66,198.18,198.04,2.94136347]
[1756704195580,2.94136347,198.16,198.04,2.94136347]
[1756704195778,5.66497807,198.25,198.07,2.94136347]
[1756704196075,2.94136347,198.22,198.1,2.94136347]
[1756704196284,2.94136347,198.25,198.1,2.94136347]
[1756704196579,43.22,198.24,198.1,2.94136347]
[1756704197280,43.22,198.24,198.09,2.94136347]
[1756704197480,2.94136347,198.22,198.09,2.94136347]
[1756704198178,39.4,198.21,198.09,2.94136347]
[1756704198579,43.4,198.2,198.09,2.94136347]
[1756704200184,43.4,198.2,198.02,4.19641061]
[1756704200381,2.94136347,198.19,198.04,2.94136347]
[1756704201883,4.96,198.18,198.07,2.94136347]
[1756704202189,9.48,198.18,198.07,2.94136347]
[1756704202984,12.42136347,198.18,198.04,2.94136347]
[1756704203284,2.94136347,198.15,197.98,4.19641061]
[1756704203489,2.94136347,198.15,198.0,2.94136347]
[1756704203886,44.04,198.14,198.0,2.94136347]
[1756704204381,10.0,198.17,198.0,2.94136347]
[1756704204577,339.2,198.18,198.06,2.94136347]
[1756704204785,10.0,198.22,198.09,2.94136347]
[1756704204978,46.94,198.23,198.09,2.94136347]
[1756704208387,5.66497807,198.29,198.12,2.94136347]
[1756704208592,2.94136347,198.29,198.15,2.94136347]
[1756704208790,127.7,198.28,198.15,2.94136347]
[1756704209187,2.94136347,198.29,198.15,2.94136347]
[1756704209384,127.68,198.28,198.15,2.94136347]
[1756704209791,339.22,198.3,198.12,2.94136347]
[1756704209986,130.62136347,198.29,198.16,2.94136347]
[1756704210390,339.22,198.3,198.16,2.94136347]
[1756704210588,339.22,198.3,198.19,2.94136347]
[1756704210794,127.94,198.29,198.19,2.94136347]
[1756704210995,128.0,198.28,198.19,2.94136347]
[1756704211290,128.0,198.28,198.12,7.13777408]
[1756704211595,128.0,198.27,198.19,2.94136347]
[1756704211795,339.22,198.3,198.19,2.94136347]
[1756704211997,128.06,198.29,198.19,2.94136347]
[1756704212190,127.43877097,198.38,198.22,2.94136347]
[1756704212393,128.04,198.32,198.25,2.94136347]
[1756704212697,128.04,198.32,198.22,2.94136347]
[1756704212895,115.23013444,198.38,198.25,2.94136347]
[1756704213097,128.0,198.34,198.25,2.94136347]
[1756704213799,128.0,198.34,198.22,2.94136347]
[1756704214795,0.87797863,198.34,198.19,2.94136347]
[1756704214988,127.96,198.33,198.19,2.94136347]
[1756704215193,127.92,198.32,198.19,2.94136347]
[1756704215388,127.92,198.31,198.18,2.94136347]
[1756704216298,2.94136347,198.29,198.15,2.94136347]
[1756704216597,2.94136347,198.31,198.15,2.94136347]
[1756704216900,2.94136347,198.31,198.18,2.94136347]
[1756704217102,54.5,198.3,198.21,2.94136347]
[1756704217396,54.5,198.3,198.2,2.94136347]
[1756704217893,54.5,198.3,198.16,2.94136347]
[1756704218099,2.94136347,198.28,198.16,2.94136347]
[1756704219397,10.0,198.33,198.16,2.94136347]
[1756704219398,66.48,198.27,198.16,2.94136347]
[1756704220492,2.94136347,198.32,198.16,2.94136347]
[1756704220895,51.78,198.31,198.11,4.19641061]
[1756704221096,2.94136347,198.26,198.12,2.94136347]
[1756704222398,7.36,198.25,198.12,2.94136347]
[1756704223497,2.94136347,198.23,198.09,2.94136347]
[1756704223796,2.94136347,198.24,198.09,2.94136347]
[1756704225598,48.58,198.23,198.09,2.94136347]
[1756704225798,90.32,198.22,198.09,2.94136347]
[1756704226602,127.94,198.21,198.12,2.94136347]
[1756704228302,127.88,198.22,198.12,2.94136347]
[1756704228601,339.12,198.26,198.12,2.94136347]
[1756704228798,127.78,198.25,198.12,2.94136347]
[1756704229001,127.78,198.24,198.12,2.94136347]
[1756704230002,127.78,198.24,198.08,4.18788827]
[1756704230299,2.94136347,198.21,198.06,4.18788827]
[1756704230510,73.19136347,198.2,198.01,2.94136347]
[1756704230703,2.94136347,198.16,198.01,2.94136347]
[1756704232404,6.8,198.15,198.01,2.94136347]
[1756704232701,2.94136347,198.16,198.04,2.94136347]
[1756704233001,2.94136347,198.19,198.04,2.94136347]
[1756704233200,36.94,198.18,198.04,2.94136347]
[1756704234502,79.72,198.17,198.04,2.94136347]
[1756704235307,2.94136347,198.16,198.03,2.94136347]
[1756704236908,12.94136347,198.16,198.03,2.94136347]
[1756704237713,28.2,198.15,198.03,2.94136347]
[1756704238613,12.94136347,198.16,198.03,2.94136347]
[1756704239105,28.0,198.15,198.03,2.94136347]
[1756704239509,10.0,198.16,198.03,2.94136347]